[Event "Paracin Open 2022"]
[Site "Paracin"]
[Date "2022.07.12"]
[Round "5.11"]
[White "Nitish Belurkar"]
[Black "Isik, Alparslan"]
[Result "1-0"]
[ECO "B90"]
[WhiteElo "2460"]
[BlackElo "2341"]
[Annotator "ChessBase"]
[PlyCount "75"]
[EventDate "2022.07.08"]
[EventCountry "SRB"]
[SourceTitle "playchess.com"]
[Source "ChessBase"]
[SourceQuality "1"]
[TimeControl "5400+30"]

1. e4 {[%emt 0:00:04]} c5 {[%emt 0:00:07]} 2. Nf3 {[%emt 0:00:06]} d6 {[%emt 0:00:06]} 3. d4 {[%emt 0:00:02]} cxd4 {[%emt 0:00:08]} 4. Nxd4 {[%emt 0:00:05]} Nf6 {[%emt 0:00:06]} 5. Nc3 {[%emt 0:00:04]} a6 {[%emt 0:00:04]} 6. Be3 {[%emt 0:00:12]} e5 {[%emt 0:00:15]} 7. Nb3 {[%emt 0:00:06]} Be6 {[%emt 0:00:12]} 8. h3 {[%emt 0:00:05]} Nbd7 {[%emt 0:07:31]} 9. g4 {[%emt 0:00:47]} h6 {[%emt 0:01:55]} 10. Qd2 {[%emt 0:00:10]} Be7 {[%emt 0:02:17]} 11. O-O-O {[%emt 0:05:59]} b5 {[%emt 0:02:42]} 12. f4 {[%emt 0:02:25]} Rc8 {[%emt 0:07:29]} 13. Kb1 {[%emt 0:07:22]} Qc7 {[%emt 0:05:59]} 14. Bg2 {[%emt 0:19:23]} Nb6 {[%emt 0:05:46]} 15. Bxb6 {[%emt 0:04:07]} Qxb6 {[%emt 0:00:15]} 16. Nd5 {[%emt 0:00:59]} Nxd5 {[%emt 0:24:27]} 17. exd5 {[%emt 0:00:08]} Bd7 {[%emt 0:00:09]} 18. Na5 {[%emt 0:01:50]} O-O {[%emt 0:02:00]} 19. Nc6 {[%emt 0:01:27]} Rfe8 {[%emt 0:01:16]} 20. Rhf1 {[%emt 0:08:34]} Bh4 {[%emt 0:09:10]} 21. fxe5 {[%emt 0:20:57]} dxe5 {[%emt 0:00:38]} 22. Be4 {[%emt 0:00:36]} Bg5 {[%emt 0:06:34]} 23. Qg2 {[%emt 0:00:45]} Bf4 {[%emt 0:03:38]} 24. Bf5 {[%emt 0:03:42]} Rc7 {[%emt 0:07:00]} 25. Ne7+ {[%emt 0:05:01]} Kh8 {[%emt 0:00:10]} 26. d6 {[%emt 0:00:24]} Ra7 {[%emt 0:00:04]} 27. Qd5 {[%emt 0:04:56]} Rf8 {[%emt 0:01:47]} 28. h4 {[%emt 0:01:36]} Qb7 {[%emt 0:05:08]} 29. Qb3 {[%emt 0:01:47]} Qg2 {[%emt 0:02:01]} 30. a3 {[%emt 0:06:01]} Qe2 {[%emt 0:03:28]} 31. Qh3 {[%emt 0:02:11]} Rd8 {[%emt 0:01:50]} 32. g5 {[%emt 0:00:57]} Bxf5 {[%emt 0:01:09]} 33. Qxf5 {[%emt 0:00:07]} Rxe7 {[%emt 0:00:17]} 34. Rde1 {[%emt 0:00:07]} Qxe1+ {[%emt 0:00:18]} 35. Rxe1 {[%emt 0:00:04]} Rxd6 {[%emt 0:00:01]} 36. gxh6 {[%emt 0:00:32]} g6 {[%emt 0:00:47]} 37. Qc8+ {[%emt 0:00:04]} Kh7 {[%emt 0:00:01]} 38. Qf8 {[%emt 0:00:02]} 1-0

[Event "Paracin Open 2022"]
[Site "Paracin"]
[Date "2022.07.12"]
[Round "5.12"]
[White "Rohith Krishna S"]
[Black "Agmanov, Zhandos"]
[Result "0-1"]
[ECO "E66"]
[WhiteElo "2326"]
[BlackElo "2459"]
[Annotator "ChessBase"]
[PlyCount "88"]
[EventDate "2022.07.08"]
[EventCountry "SRB"]
[SourceTitle "playchess.com"]
[Source "ChessBase"]
[SourceQuality "1"]
[TimeControl "5400+30"]

1. d4 {[%emt 0:00:19]} Nf6 {[%emt 0:00:08]} 2. c4 {[%emt 0:00:06]} g6 {[%emt 0:00:04]} 3. Nf3 {[%emt 0:00:11]} Bg7 {[%emt 0:00:05]} 4. g3 {[%emt 0:00:12]} O-O {[%emt 0:00:08]} 5. Bg2 {[%emt 0:00:06]} d6 {[%emt 0:00:05]} 6. Nc3 {[%emt 0:00:28]} c5 {[%emt 0:00:05]} 7. O-O {[%emt 0:00:10]} Nc6 {[%emt 0:00:03]} 8. d5 {[%emt 0:00:10]} Na5 {[%emt 0:00:08]} 9. Nd2 {[%emt 0:00:11]} a6 {[%emt 0:00:14]} 10. Qc2 {[%emt 0:00:39]} b5 {[%emt 0:00:04]} 11. cxb5 {[%emt 0:02:41]} axb5 {[%emt 0:00:11]} 12. Nxb5 {[%emt 0:00:07]} Qb6 {[%emt 0:00:07]} 13. Nc3 {[%emt 0:07:38]} Bf5 {[%emt 0:00:24]} 14. e4 {[%emt 0:08:05]} Bc8 {[%emt 0:00:01]} 15. h3 {[%emt 0:00:20]} Nd7 {[%emt 0:03:18]} 16. Nf3 {[%emt 0:06:38]} Nb3 {[%emt 0:03:07]} 17. Rb1 {[%emt 0:00:09]} Nd4 {[%emt 0:00:02]} 18. Nxd4 {[%emt 0:03:32]} cxd4 {[%emt 0:00:05]} 19. Na4 {[%emt 0:00:12]} Qa7 {[%emt 0:35:46]} 20. b3 {[%emt 0:00:28]} Ba6 {[%emt 0:00:11]} 21. Re1 {[%emt 0:04:08]} Rfc8 {[%emt 0:14:29]} 22. Qd1 {[%emt 0:00:31]} Bb5 {[%emt 0:01:53]} 23. Bf1 {[%emt 0:07:49]} Bxa4 {[%emt 0:00:11]} 24. bxa4 {[%emt 0:00:06]} Nc5 {[%emt 0:00:08]} 25. Bf4 {[%emt 0:12:48]} Nxa4 {[%emt 0:00:47]} 26. Ra1 {[%emt 0:03:14]} d3 {[%emt 0:05:56]} 27. Rc1 {[%emt 0:12:26]} Bd4 {[%emt 0:08:58]} 28. Be3 {[%emt 0:05:17]} Bxe3 {[%emt 0:00:13]} 29. Rxe3 {[%emt 0:01:50]} Nb2 {[%emt 0:00:39]} 30. Rxc8+ {[%emt 0:10:30]} Rxc8 {[%emt 0:00:01]} 31. Qb3 {[%emt 0:00:02]} d2 {[%emt 0:03:54]} 32. Be2 {[%emt 0:00:10]} Qd4 {[%emt 0:06:28]} 33. Qb7 {[%emt 0:08:46]} Rc1+ {[%emt 0:01:37]} 34. Kh2 {[%emt 0:00:02]} d1=Q {[%emt 0:01:49]} 35. Bxd1 {[%emt 0:00:06]} Nxd1 {[%emt 0:00:51]} 36. Rf3 {[%emt 0:00:17]} Qxe4 {[%emt 0:00:39]} 37. Rf4 {[%emt 0:00:06]} Qe5 {[%emt 0:01:11]} 38. Qb8+ {[%emt 0:01:12]} Kg7 {[%emt 0:00:02]} 39. Qe8 {[%emt 0:00:02]} f5 {[%emt 0:02:53]} 40. h4 {[%emt 0:01:37]} Rc2 {[%emt 0:01:35]} 41. Kg2 {[%emt 0:00:10]} Nxf2 {[%emt 0:01:00]} 42. Qa4 {[%emt 0:00:34]} Qxd5+ {[%emt 0:00:19]} 43. Rf3 {[%emt 0:00:11]} Ng4+ {[%emt 0:00:31]} 44. Qxc2 {[%emt 0:00:08]} Ne3+ {[%emt 0:00:04]} 0-1

[Event "Paracin Open 2022"]
[Site "Paracin"]
[Date "2022.07.12"]
[Round "5.13"]
[White "Sturt, Raven"]
[Black "Tsaknakis, Zisis"]
[Result "1/2-1/2"]
[ECO "D37"]
[WhiteElo "2457"]
[BlackElo "2266"]
[Annotator "ChessBase"]
[PlyCount "60"]
[EventDate "2022.07.08"]
[EventCountry "SRB"]
[SourceTitle "playchess.com"]
[Source "ChessBase"]
[SourceQuality "1"]
[TimeControl "5400+30"]

1. d4 {[%emt 0:00:01]} d5 {[%emt 0:00:09]} 2. c4 {[%emt 0:00:05]} e6 {[%emt 0:00:02]} 3. Nf3 {[%emt 0:00:06]} Nf6 {[%emt 0:00:26]} 4. Nc3 {[%emt 0:00:04]} a6 {[%emt 0:00:03]} 5. c5 {[%emt 0:01:14]} b6 {[%emt 0:00:02]} 6. cxb6 {[%emt 0:00:08]} c5 {[%emt 0:00:02]} 7. Bf4 {[%emt 0:00:09]} Bd6 {[%emt 0:00:02]} 8. Bxd6 {[%emt 0:00:34]} Qxd6 {[%emt 0:00:03]} 9. dxc5 {[%emt 0:00:06]} Qxc5 {[%emt 0:00:07]} 10. Qd4 {[%emt 0:00:05]} Qd6 {[%emt 0:00:06]} 11. e3 {[%emt 0:00:07]} O-O {[%emt 0:00:11]} 12. Be2 {[%emt 0:01:45]} Nbd7 {[%emt 0:00:58]} 13. Na4 {[%emt 0:01:47]} Rb8 {[%emt 0:00:02]} 14. O-O {[%emt 0:03:42]} Nxb6 {[%emt 0:00:03]} 15. Nc5 {[%emt 0:02:28]} Nbd7 {[%emt 0:00:39]} 16. b4 {[%emt 0:01:55]} a5 {[%emt 0:03:07]} 17. Nxd7 {[%emt 0:06:14]} Bxd7 {[%emt 0:10:37]} 18. bxa5 {[%emt 0:00:13]} Bb5 {[%emt 0:06:55]} 19. Bxb5 {[%emt 0:03:38]} Rxb5 {[%emt 0:00:03]} 20. Nd2 {[%emt 0:00:17]} Rb4 {[%emt 0:23:24]} 21. Qd3 {[%emt 0:03:40]} Ra4 {[%emt 0:05:30]} 22. Rfc1 {[%emt 0:18:27]} Rxa5 {[%emt 0:12:25]} 23. a4 {[%emt 0:00:24]} Qd7 {[%emt 0:04:02]} 24. Qc2 {[%emt 0:12:38]} Rfa8 {[%emt 0:04:55]} 25. Nb3 {[%emt 0:02:04]} Rxa4 {[%emt 0:00:06]} 26. Nc5 {[%emt 0:00:10]} Rxa1 {[%emt 0:00:15]} 27. Nxd7 {[%emt 0:00:05]} Nxd7 {[%emt 0:00:32]} 28. h3 {[%emt 0:00:31]} h5 {[%emt 0:03:26]} 29. Rxa1 {[%emt 0:00:40]} Rxa1+ {[%emt 0:00:04]} 30. Kh2 {[%emt 0:00:01]} Nf6 {[%emt 0:04:21]} 1/2-1/2

[Event "Paracin Open 2022"]
[Site "Paracin"]
[Date "2022.07.12"]
[Round "5.14"]
[White "Nogerbek, Kazybek"]
[Black "Ibadov, Dashgyn"]
[Result "1-0"]
[ECO "B24"]
[WhiteElo "2437"]
[BlackElo "2262"]
[Annotator "ChessBase"]
[PlyCount "81"]
[EventDate "2022.07.08"]
[EventCountry "SRB"]
[SourceTitle "playchess.com"]
[Source "ChessBase"]
[SourceQuality "1"]
[TimeControl "5400+30"]

1. e4 {[%emt 0:00:07]} c5 {[%emt 0:00:10]} 2. Nc3 {[%emt 0:00:19]} d6 {[%emt 0:03:03]} 3. f4 {[%emt 0:00:22]} Nf6 {[%emt 0:00:32]} 4. Nf3 {[%emt 0:00:40]} e6 {[%emt 0:01:00]} 5. g3 {[%emt 0:09:20]} Be7 {[%emt 0:03:01]} 6. Bg2 {[%emt 0:01:57]} O-O {[%emt 0:01:11]} 7. O-O {[%emt 0:00:09]} Nc6 {[%emt 0:03:18]} 8. d3 {[%emt 0:01:28]} Rb8 {[%emt 0:03:36]} 9. a4 {[%emt 0:00:56]} a6 {[%emt 0:01:20]} 10. h3 {[%emt 0:00:28]} b5 {[%emt 0:08:35]} 11. axb5 {[%emt 0:00:18]} axb5 {[%emt 0:00:03]} 12. g4 {[%emt 0:00:28]} b4 {[%emt 0:06:43]} 13. Ne2 {[%emt 0:00:38]} Nd7 {[%emt 0:01:43]} 14. g5 {[%emt 0:03:24]} Bb7 {[%emt 0:21:50]} 15. b3 {[%emt 0:01:04]} f5 {[%emt 0:03:47]} 16. Ng3 {[%emt 0:03:53]} Nb6 {[%emt 0:03:55]} 17. exf5 {[%emt 0:05:21]} exf5 {[%emt 0:00:06]} 18. Bb2 {[%emt 0:00:10]} Qd7 {[%emt 0:03:01]} 19. h4 {[%emt 0:04:58]} Bd8 {[%emt 0:11:25]} 20. h5 {[%emt 0:03:05]} d5 {[%emt 0:03:19]} 21. d4 {[%emt 0:07:57]} c4 {[%emt 0:00:46]} 22. Bc1 {[%emt 0:00:21]} Bc7 {[%emt 0:00:23]} 23. Be3 {[%emt 0:00:49]} Rbe8 {[%emt 0:00:41]} 24. Ne5 {[%emt 0:00:41]} Qe6 {[%emt 0:08:26]} 25. Bf2 {[%emt 0:01:17]} Bxe5 {[%emt 0:01:07]} 26. dxe5 {[%emt 0:00:14]} d4 {[%emt 0:00:05]} 27. bxc4 {[%emt 0:03:30]} Nxc4 {[%emt 0:02:59]} 28. Ne2 {[%emt 0:00:23]} Rd8 {[%emt 0:00:47]} 29. Qe1 {[%emt 0:03:17]} d3 {[%emt 0:02:03]} 30. cxd3 {[%emt 0:00:05]} Rxd3 {[%emt 0:00:30]} 31. Nc1 {[%emt 0:00:41]} Rc3 {[%emt 0:01:56]} 32. Na2 {[%emt 0:03:27]} Rd3 {[%emt 0:01:14]} 33. Nc1 {[%emt 0:02:25]} Rc3 {[%emt 0:01:05]} 34. Rb1 {[%emt 0:00:32]} Rd8 {[%emt 0:00:52]} 35. Nb3 {[%emt 0:02:17]} Ba8 {[%emt 0:00:29]} 36. Nc5 {[%emt 0:00:27]} Qe7 {[%emt 0:00:39]} 37. Rd1 {[%emt 0:04:17]} Nb2 {[%emt 0:01:40]} 38. Rd6 {[%emt 0:01:14]} Na5 {[%emt 0:00:57]} 39. Qd2 {[%emt 0:00:37]} Rf8 {[%emt 0:00:50]} 40. Bxa8 {[%emt 0:00:50]} Rxa8 {[%emt 0:00:08]} 41. Qd5+ {[%emt 0:00:05]} 1-0

[Event "Paracin Open 2022"]
[Site "Paracin"]
[Date "2022.07.12"]
[Round "5.15"]
[White "Sharan, Rao"]
[Black "Zajic, Milan"]
[Result "1/2-1/2"]
[ECO "A47"]
[WhiteElo "2342"]
[BlackElo "2431"]
[Annotator "ChessBase"]
[PlyCount "60"]
[EventDate "2022.07.08"]
[EventCountry "SRB"]
[SourceTitle "playchess.com"]
[Source "ChessBase"]
[SourceQuality "1"]
[TimeControl "5400+30"]

1. d4 {[%emt 0:00:03]} Nf6 {[%emt 0:04:52]} 2. Nf3 {[%emt 0:00:09]} e6 {[%emt 0:00:15]} 3. b3 {[%emt 0:00:08]} d5 {[%emt 0:01:26]} 4. Bb2 {[%emt 0:00:05]} Bd6 {[%emt 0:00:11]} 5. e3 {[%emt 0:00:05]} b6 {[%emt 0:00:18]} 6. Be2 {[%emt 0:00:08]} Bb7 {[%emt 0:00:05]} 7. O-O {[%emt 0:00:06]} O-O {[%emt 0:00:08]} 8. Nbd2 {[%emt 0:00:09]} Nbd7 {[%emt 0:01:31]} 9. c4 {[%emt 0:00:05]} Qe7 {[%emt 0:01:26]} 10. Rc1 {[%emt 0:00:43]} c5 {[%emt 0:05:19]} 11. Rc2 {[%emt 0:01:03]} Rac8 {[%emt 0:11:32]} 12. Qa1 {[%emt 0:00:47]} Rc7 {[%emt 0:01:34]} 13. Rfc1 {[%emt 0:03:36]} Rfc8 {[%emt 0:00:34]} 14. cxd5 {[%emt 0:02:12]} exd5 {[%emt 0:03:52]} 15. Ne5 {[%emt 0:12:56]} Nf8 {[%emt 0:05:19]} 16. Ng4 {[%emt 0:08:12]} Nxg4 {[%emt 0:06:53]} 17. Bxg4 {[%emt 0:00:24]} Ne6 {[%emt 0:00:22]} 18. dxc5 {[%emt 0:08:19]} bxc5 {[%emt 0:05:21]} 19. Nf3 {[%emt 0:08:46]} Rf8 {[%emt 0:05:41]} 20. Bxe6 {[%emt 0:12:50]} fxe6 {[%emt 0:00:49]} 21. Be5 {[%emt 0:00:21]} Rfc8 {[%emt 0:22:29]} 22. Bxd6 {[%emt 0:04:46]} Qxd6 {[%emt 0:00:01]} 23. Qe5 {[%emt 0:00:08]} Qxe5 {[%emt 0:03:24]} 24. Nxe5 {[%emt 0:00:02]} a5 {[%emt 0:00:49]} 25. f4 {[%emt 0:05:44]} Ba6 {[%emt 0:01:42]} 26. Kf2 {[%emt 0:00:57]} Bb5 {[%emt 0:01:49]} 27. Rc3 {[%emt 0:04:57]} Kf8 {[%emt 0:07:50]} 28. a4 {[%emt 0:08:18]} Be8 {[%emt 0:00:06]} 29. Nd3 {[%emt 0:00:30]} c4 {[%emt 0:00:22]} 30. Ne5 {[%emt 0:02:07]} Ke7 {[%emt 0:00:12]} 1/2-1/2

[Event "Paracin Open 2022"]
[Site "Paracin"]
[Date "2022.07.12"]
[Round "5.16"]
[White "Srihari L R"]
[Black "Sanket Chakravarty"]
[Result "1-0"]
[ECO "D24"]
[WhiteElo "2431"]
[BlackElo "2209"]
[Annotator "ChessBase"]
[PlyCount "87"]
[EventDate "2022.07.08"]
[EventCountry "SRB"]
[SourceTitle "playchess.com"]
[Source "ChessBase"]
[SourceQuality "1"]
[TimeControl "5400+30"]

1. Nf3 {[%emt 0:00:22]} d5 {[%emt 0:00:10]} 2. c4 {[%emt 0:00:59]} e6 {[%emt 0:00:11]} 3. d4 {[%emt 0:01:21]} Nf6 {[%emt 0:00:29]} 4. Nc3 {[%emt 0:02:32]} a6 {[%emt 0:00:16]} 5. Bg5 {[%emt 0:02:20]} dxc4 {[%emt 0:00:43]} 6. e4 {[%emt 0:01:13]} b5 {[%emt 0:03:37]} 7. e5 {[%emt 0:00:37]} h6 {[%emt 0:01:44]} 8. Bh4 {[%emt 0:00:34]} g5 {[%emt 0:07:10]} 9. Nxg5 {[%emt 0:01:32]} hxg5 {[%emt 0:07:20]} 10. Bxg5 {[%emt 0:00:01]} Nbd7 {[%emt 0:05:36]} 11. Be2 {[%emt 0:04:59]} Bb7 {[%emt 0:04:18]} 12. Bf3 {[%emt 0:01:20]} Qb8 {[%emt 0:01:02]} 13. exf6 {[%emt 0:02:06]} c5 {[%emt 0:02:02]} 14. Be3 {[%emt 0:37:33]} cxd4 {[%emt 0:07:52]} 15. Bxd4 {[%emt 0:03:04]} Rh4 {[%emt 0:07:48]} 16. Be3 {[%emt 0:13:04]} Bxf3 {[%emt 0:16:56]} 17. Qxf3 {[%emt 0:00:40]} Ne5 {[%emt 0:00:13]} 18. Qg3 {[%emt 0:01:00]} Rg4 {[%emt 0:03:08]} 19. Qh3 {[%emt 0:00:12]} Qb7 {[%emt 0:07:20]} 20. O-O {[%emt 0:07:36]} O-O-O {[%emt 0:01:20]} 21. Rad1 {[%emt 0:05:11]} Re8 {[%emt 0:06:31]} 22. f3 {[%emt 0:03:27]} Rg6 {[%emt 0:01:51]} 23. a4 {[%emt 0:01:52]} Bh6 {[%emt 0:02:14]} 24. Bxh6 {[%emt 0:02:58]} Rh8 {[%emt 0:00:02]} 25. Qh5 {[%emt 0:00:33]} Qb6+ {[%emt 0:00:53]} 26. Kh1 {[%emt 0:00:05]} Qc7 {[%emt 0:03:35]} 27. Nd5 {[%emt 0:02:48]} exd5 {[%emt 0:01:16]} 28. Qf5+ {[%emt 0:00:01]} Qd7 {[%emt 0:00:43]} 29. Qxd7+ {[%emt 0:00:05]} Nxd7 {[%emt 0:00:55]} 30. Bg7 {[%emt 0:00:05]} Rh5 {[%emt 0:00:32]} 31. g4 {[%emt 0:00:14]} Re5 {[%emt 0:00:11]} 32. f4 {[%emt 0:00:17]} Re3 {[%emt 0:02:24]} 33. g5 {[%emt 0:00:07]} Nc5 {[%emt 0:00:08]} 34. Rxd5 {[%emt 0:01:16]} Ne6 {[%emt 0:00:03]} 35. axb5 {[%emt 0:00:48]} Nxg7 {[%emt 0:00:08]} 36. fxg7 {[%emt 0:02:09]} axb5 {[%emt 0:00:01]} 37. Rxb5 {[%emt 0:00:14]} Rxg7 {[%emt 0:00:02]} 38. Rc5+ {[%emt 0:00:33]} Kb7 {[%emt 0:00:30]} 39. Rf2 {[%emt 0:00:59]} f6 {[%emt 0:00:12]} 40. Rxc4 {[%emt 0:00:47]} fxg5 {[%emt 0:00:03]} 41. f5 {[%emt 0:00:25]} g4 {[%emt 0:00:57]} 42. Rb4+ {[%emt 0:00:42]} Kc6 {[%emt 0:00:07]} 43. f6 {[%emt 0:00:04]} Ra7 {[%emt 0:01:28]} 44. f7 {[%emt 0:00:34]} 1-0

[Event "Paracin Open 2022"]
[Site "Paracin"]
[Date "2022.07.12"]
[Round "5.17"]
[White "Han, Yichen"]
[Black "Gan-Erdene, Sugar"]
[Result "1/2-1/2"]
[ECO "E90"]
[WhiteElo "2286"]
[BlackElo "2428"]
[Annotator "ChessBase"]
[PlyCount "101"]
[EventDate "2022.07.08"]
[EventCountry "SRB"]
[SourceTitle "playchess.com"]
[Source "ChessBase"]
[SourceQuality "1"]
[TimeControl "5400+30"]

1. d4 {[%emt 0:00:11]} Nf6 {[%emt 0:00:07]} 2. c4 {[%emt 0:00:18]} g6 {[%emt 0:00:16]} 3. Nc3 {[%emt 0:00:34]} Bg7 {[%emt 0:00:20]} 4. e4 {[%emt 0:00:08]} d6 {[%emt 0:00:11]} 5. h3 {[%emt 0:01:21]} O-O {[%emt 0:00:24]} 6. Be3 {[%emt 0:00:19]} c5 {[%emt 0:07:44]} 7. Nf3 {[%emt 0:01:28]} cxd4 {[%emt 0:03:09]} 8. Nxd4 {[%emt 0:00:10]} b6 {[%emt 0:00:08]} 9. Qd2 {[%emt 0:02:29]} Bb7 {[%emt 0:03:46]} 10. f3 {[%emt 0:00:16]} Nbd7 {[%emt 0:20:21]} 11. Bh6 {[%emt 0:01:04]} e5 {[%emt 0:04:14]} 12. Bxg7 {[%emt 0:07:05]} exd4 {[%emt 0:04:51]} 13. Bxf6 {[%emt 0:00:21]} Qxf6 {[%emt 0:00:21]} 14. Nb5 {[%emt 0:01:29]} Ne5 {[%emt 0:02:31]} 15. Nxd4 {[%emt 0:07:41]} Rac8 {[%emt 0:01:33]} 16. Nb5 {[%emt 0:09:17]} Nxc4 {[%emt 0:15:24]} 17. Bxc4 {[%emt 0:00:58]} Rxc4 {[%emt 0:00:35]} 18. O-O {[%emt 0:06:55]} Ba6 {[%emt 0:03:17]} 19. a4 {[%emt 0:01:55]} Rc5 {[%emt 0:01:24]} 20. b4 {[%emt 0:04:46]} Rc4 {[%emt 0:02:46]} 21. Rfd1 {[%emt 0:10:04]} Bxb5 {[%emt 0:19:09]} 22. axb5 {[%emt 0:00:13]} Rfc8 {[%emt 0:02:44]} 23. Rxa7 {[%emt 0:07:55]} Rc2 {[%emt 0:00:10]} 24. Ra8 {[%emt 0:00:23]} Rxd2 {[%emt 0:03:00]} 25. Rxc8+ {[%emt 0:00:29]} Kg7 {[%emt 0:00:03]} 26. Rxd2 {[%emt 0:00:09]} Qa1+ {[%emt 0:00:12]} 27. Kf2 {[%emt 0:01:36]} Qe5 {[%emt 0:00:15]} 28. Rd5 {[%emt 0:01:50]} Qb2+ {[%emt 0:00:05]} 29. Kg3 {[%emt 0:00:48]} Qxb4 {[%emt 0:00:04]} 30. Rc6 {[%emt 0:04:45]} h5 {[%emt 0:00:37]} 31. Rcxd6 {[%emt 0:02:22]} Qe1+ {[%emt 0:00:31]} 32. Kh2 {[%emt 0:02:43]} Qe3 {[%emt 0:00:33]} 33. Rd3 {[%emt 0:05:08]} Qf4+ {[%emt 0:02:41]} 34. g3 {[%emt 0:02:24]} Qc1 {[%emt 0:00:08]} 35. Rd2 {[%emt 0:00:56]} Qf1 {[%emt 0:00:13]} 36. Rxb6 {[%emt 0:05:22]} h4 {[%emt 0:01:01]} 37. Rbd6 {[%emt 0:05:17]} Qxf3 {[%emt 0:00:19]} 38. R6d3 {[%emt 0:01:59]} hxg3+ {[%emt 0:00:17]} 39. Kg1 {[%emt 0:00:01]} Qxe4 {[%emt 0:00:18]} 40. b6 {[%emt 0:00:17]} Qe1+ {[%emt 0:03:32]} 41. Kg2 {[%emt 0:00:01]} Qe4+ {[%emt 0:00:08]} 42. Kxg3 {[%emt 0:00:40]} Qe5+ {[%emt 0:00:08]} 43. Kg2 {[%emt 0:00:23]} Qe4+ {[%emt 0:00:11]} 44. Kf1 {[%emt 0:00:39]} Qf5+ {[%emt 0:00:04]} 45. Kg2 {[%emt 0:01:02]} Qe4+ {[%emt 0:00:09]} 46. Rf3 {[%emt 0:02:29]} Qb4 {[%emt 0:00:12]} 47. Rd7 {[%emt 0:00:45]} Qxb6 {[%emt 0:00:13]} 48. Rfxf7+ {[%emt 0:00:20]} Kh6 {[%emt 0:00:03]} 49. Rh7+ {[%emt 0:01:19]} Kg5 {[%emt 0:00:04]} 50. Rd5+ {[%emt 0:00:10]} Kf6 {[%emt 0:00:12]} 51. Rhd7 {[%emt 0:00:14]} 1/2-1/2

[Event "Paracin Open 2022"]
[Site "Paracin"]
[Date "2022.07.12"]
[Round "5.18"]
[White "Savic, Miodrag R"]
[Black "Kairbekova, Amina"]
[Result "1/2-1/2"]
[ECO "C55"]
[WhiteElo "2418"]
[BlackElo "2133"]
[Annotator "ChessBase"]
[PlyCount "92"]
[EventDate "2022.07.08"]
[EventCountry "SRB"]
[SourceTitle "playchess.com"]
[Source "ChessBase"]
[SourceQuality "1"]
[TimeControl "5400+30"]

1. e4 {[%emt 0:00:16]} e5 {[%emt 0:00:07]} 2. Bc4 {[%emt 0:00:28]} Nf6 {[%emt 0:01:10]} 3. d3 {[%emt 0:00:10]} Nc6 {[%emt 0:00:26]} 4. Nf3 {[%emt 0:00:50]} h6 {[%emt 0:00:11]} 5. O-O {[%emt 0:00:23]} d6 {[%emt 0:00:11]} 6. c3 {[%emt 0:02:44]} g5 {[%emt 0:00:17]} 7. Ne1 {[%emt 0:03:52]} Bg7 {[%emt 0:00:30]} 8. Nd2 {[%emt 0:06:05]} O-O {[%emt 0:02:25]} 9. Nc2 {[%emt 0:00:45]} d5 {[%emt 0:00:23]} 10. Bb3 {[%emt 0:01:46]} Ne7 {[%emt 0:03:21]} 11. Ne3 {[%emt 0:16:05]} c6 {[%emt 0:02:29]} 12. Re1 {[%emt 0:02:15]} Qd6 {[%emt 0:15:11]} 13. d4 {[%emt 0:07:22]} Nd7 {[%emt 0:08:18]} 14. exd5 {[%emt 0:02:17]} exd4 {[%emt 0:07:45]} 15. Ndc4 {[%emt 0:15:21]} Qg6 {[%emt 0:04:14]} 16. Bc2 {[%emt 0:04:55]} f5 {[%emt 0:01:56]} 17. d6 {[%emt 0:01:16]} Nd5 {[%emt 0:06:18]} 18. cxd4 {[%emt 0:00:16]} Nxe3 {[%emt 0:02:24]} 19. Rxe3 {[%emt 0:05:01]} b5 {[%emt 0:02:53]} 20. Na5 {[%emt 0:00:22]} Qxd6 {[%emt 0:01:32]} 21. Re6 {[%emt 0:02:26]} Qxd4 {[%emt 0:00:53]} 22. Qxd4 {[%emt 0:00:39]} Bxd4 {[%emt 0:00:07]} 23. Rxh6 {[%emt 0:03:30]} Ne5 {[%emt 0:07:45]} 24. Bxg5 {[%emt 0:05:13]} Ng4 {[%emt 0:00:29]} 25. Rxc6 {[%emt 0:06:22]} Bxf2+ {[%emt 0:00:10]} 26. Kf1 {[%emt 0:01:39]} Bb6 {[%emt 0:00:44]} 27. b4 {[%emt 0:00:59]} Bd7 {[%emt 0:14:16]} 28. Rd6 {[%emt 0:00:02]} Rae8 {[%emt 0:00:39]} 29. Bf4 {[%emt 0:00:53]} Bc7 {[%emt 0:02:22]} 30. Bb3+ {[%emt 0:01:31]} Kh8 {[%emt 0:00:14]} 31. Rad1 {[%emt 0:01:42]} Bxd6 {[%emt 0:05:33]} 32. Rxd6 {[%emt 0:00:03]} Re4 {[%emt 0:01:06]} 33. g3 {[%emt 0:01:45]} Rfe8 {[%emt 0:00:25]} 34. Bd1 {[%emt 0:01:53]} Be6 {[%emt 0:05:06]} 35. h3 {[%emt 0:00:51]} Ne3+ {[%emt 0:01:28]} 36. Bxe3 {[%emt 0:01:03]} Rxe3 {[%emt 0:00:04]} 37. Kf2 {[%emt 0:00:02]} Bxa2 {[%emt 0:00:28]} 38. Nc6 {[%emt 0:00:49]} R3e6 {[%emt 0:01:57]} 39. Rxe6 {[%emt 0:00:13]} Rxe6 {[%emt 0:00:03]} 40. Nxa7 {[%emt 0:00:02]} Bc4 {[%emt 0:01:38]} 41. Bf3 {[%emt 0:00:01]} Rd6 {[%emt 0:02:18]} 42. Bc6 {[%emt 0:01:21]} Rd2+ {[%emt 0:01:10]} 43. Ke3 {[%emt 0:00:34]} Rd3+ {[%emt 0:00:28]} 44. Kf2 {[%emt 0:00:02]} Rd2+ {[%emt 0:00:10]} 45. Ke3 {[%emt 0:00:35]} Rd3+ {[%emt 0:00:07]} 46. Kf2 {[%emt 0:00:22]} Rd2+ {[%emt 0:00:15]} 1/2-1/2